[Event "*** SCC Grand Prix: Titled Tuesday Blitz"]
[Site "Chess.com"]
[Date "2020.07.07"]
[Round "2"]
[White "lukas_111111"]
[Black "dalmatinac101"]
[Result "0-1"]
[WhiteElo "2529"]
[BlackElo "2807"]
[TimeControl "180+1"]
[EndTime "10:15:15 PDT"]
[Termination "dalmatinac101 won by resignation"]

1. e4 {[%clk 0:03:00.9]} 1... g6 {[%clk 0:02:54.3]} 2. d4 {[%clk 0:03:00.4]}
2... d6 {[%clk 0:02:54]} 3. Nc3 {[%clk 0:03:00.6]} 3... Bg7 {[%clk 0:02:54.1]}
4. Be3 {[%clk 0:03:00.1]} 4... c6 {[%clk 0:02:52.4]} 5. Qd2 {[%clk 0:02:59.8]}
5... b5 {[%clk 0:02:52.4]} 6. f3 {[%clk 0:02:58.7]} 6... Nd7 {[%clk 0:02:51.8]}
7. Nh3 {[%clk 0:02:58.6]} 7... Nb6 {[%clk 0:02:48.8]} 8. Nf2 {[%clk 0:02:58.6]}
8... Nf6 {[%clk 0:02:38.8]} 9. a4 {[%clk 0:02:57.7]} 9... b4 {[%clk 0:02:36.1]}
10. Ncd1 {[%clk 0:02:47.9]} 10... a5 {[%clk 0:02:35.7]} 11. Bd3 {[%clk
0:02:45.4]} 11... O-O {[%clk 0:02:34.8]} 12. O-O {[%clk 0:02:44.9]} 12... e5
{[%clk 0:02:32.7]} 13. dxe5 {[%clk 0:02:42.5]} 13... dxe5 {[%clk 0:02:32.7]} 14.
Qe2 {[%clk 0:02:24]} 14... Be6 {[%clk 0:02:31.1]} 15. b3 {[%clk 0:02:23.3]}
15... Nh5 {[%clk 0:02:29.9]} 16. g3 {[%clk 0:02:21.3]} 16... f5 {[%clk
0:02:16.4]} 17. exf5 {[%clk 0:02:20.8]} 17... gxf5 {[%clk 0:02:15.6]} 18. f4
{[%clk 0:02:21.1]} 18... e4 {[%clk 0:02:08.9]} 19. Qxh5 {[%clk 0:02:19.7]} 19...
exd3 {[%clk 0:02:04.1]} 20. Ra2 {[%clk 0:02:18.5]} 20... dxc2 {[%clk 0:01:40.1]}
21. Rxc2 {[%clk 0:02:18.2]} 21... Bxb3 {[%clk 0:01:40.2]} 22. Rxc6 {[%clk
0:02:18.2]} 22... Nd5 {[%clk 0:01:35.4]} 23. Bc5 {[%clk 0:02:12.6]} 23... Rf6
{[%clk 0:01:35.2]} 24. Rxf6 {[%clk 0:02:08.9]} 24... Qxf6 {[%clk 0:01:35.7]} 25.
Ne3 {[%clk 0:02:03.5]} 25... Nxe3 {[%clk 0:01:34.5]} 26. Bxe3 {[%clk 0:02:03.2]}
26... Bxa4 {[%clk 0:01:34.4]} 27. Nd3 {[%clk 0:02:00.9]} 27... Bb5 {[%clk
0:01:26.7]} 28. Ne5 {[%clk 0:01:59.9]} 28... Bxf1 {[%clk 0:01:25.9]} 29. Qf3
{[%clk 0:01:58.4]} 29... Rd8 {[%clk 0:01:21.5]} 30. Qxf1 {[%clk 0:01:58.1]}
30... Qe6 {[%clk 0:01:20.5]} 0-1

[Event "*** SCC Grand Prix: Titled Tuesday Blitz"]
[Site "Chess.com"]
[Date "2020.07.07"]
[Round "2"]
[White "Gerodot71"]
[Black "FearNoEvil12"]
[Result "1-0"]
[WhiteElo "2379"]
[BlackElo "2038"]
[TimeControl "180+1"]
[EndTime "10:15:49 PDT"]
[Termination "Gerodot71 won by resignation"]

1. d4 {[%clk 0:03:00.9]} 1... b5 {[%clk 0:02:57.8]} 2. e4 {[%clk 0:02:58.7]}
2... a6 {[%clk 0:02:58.3]} 3. Nf3 {[%clk 0:02:55.8]} 3... Bb7 {[%clk 0:02:58.6]}
4. Bd3 {[%clk 0:02:55.7]} 4... e6 {[%clk 0:02:59.1]} 5. O-O {[%clk 0:02:54.1]}
5... Nf6 {[%clk 0:02:59.5]} 6. Re1 {[%clk 0:02:51.2]} 6... d6 {[%clk 0:02:59.9]}
7. c3 {[%clk 0:02:43.5]} 7... Nbd7 {[%clk 0:02:57.6]} 8. Bf4 {[%clk 0:02:35.3]}
8... h6 {[%clk 0:02:56.1]} 9. Nbd2 {[%clk 0:02:34.6]} 9... g5 {[%clk 0:02:56.4]}
10. Bg3 {[%clk 0:02:33]} 10... Rg8 {[%clk 0:02:56.3]} 11. e5 {[%clk 0:02:26.8]}
11... Nd5 {[%clk 0:02:55.2]} 12. Ne4 {[%clk 0:02:20.8]} 12... Nf4 {[%clk
0:02:49.8]} 13. Bf1 {[%clk 0:02:04]} 13... Bxe4 {[%clk 0:02:44.2]} 14. Rxe4
{[%clk 0:02:03]} 14... d5 {[%clk 0:02:44.7]} 15. Rxf4 {[%clk 0:01:58.8]} 15...
gxf4 {[%clk 0:02:43.4]} 16. Bxf4 {[%clk 0:01:59.7]} 16... h5 {[%clk 0:02:35.6]}
17. a4 {[%clk 0:01:56.8]} 17... bxa4 {[%clk 0:02:33.7]} 18. Qxa4 {[%clk
0:01:56.2]} 18... h4 {[%clk 0:02:26.3]} 19. Qc6 {[%clk 0:01:54]} 19... Be7
{[%clk 0:02:16.1]} 20. Rxa6 {[%clk 0:01:43.6]} 20... Rxa6 {[%clk 0:02:13.8]} 21.
Bxa6 {[%clk 0:01:44.5]} 21... Rg4 {[%clk 0:02:03]} 22. Bh6 {[%clk 0:01:32.9]}
22... Bf8 {[%clk 0:01:58.2]} 23. Be3 {[%clk 0:01:31]} 23... Be7 {[%clk
0:01:43.1]} 24. Bb5 {[%clk 0:01:30.7]} 24... h3 {[%clk 0:01:37.1]} 25. g3 {[%clk
0:01:27.7]} 25... Rg6 {[%clk 0:01:33.2]} 26. Kf1 {[%clk 0:01:19.2]} 26... f6
{[%clk 0:01:19.1]} 27. Qxe6 {[%clk 0:01:17.9]} 1-0

[Event "*** SCC Grand Prix: Titled Tuesday Blitz"]
[Site "Chess.com"]
[Date "2020.07.07"]
[Round "2"]
[White "GukeshDommaraju"]
[Black "Srisshhhtea"]
[Result "1-0"]
[WhiteElo "2714"]
[BlackElo "2490"]
[TimeControl "180+1"]
[EndTime "10:15:52 PDT"]
[Termination "GukeshDommaraju won by resignation"]

1. d4 {[%clk 0:03:00.9]} 1... c5 {[%clk 0:02:55.4]} 2. d5 {[%clk 0:02:55.5]}
2... Nf6 {[%clk 0:02:54.3]} 3. c4 {[%clk 0:02:55]} 3... b5 {[%clk 0:02:50.5]} 4.
cxb5 {[%clk 0:02:53.4]} 4... a6 {[%clk 0:02:50.3]} 5. bxa6 {[%clk 0:02:52]} 5...
Bxa6 {[%clk 0:02:51.2]} 6. Nc3 {[%clk 0:02:51.6]} 6... g6 {[%clk 0:02:49.1]} 7.
g3 {[%clk 0:02:48.7]} 7... Bg7 {[%clk 0:02:48.1]} 8. Bg2 {[%clk 0:02:49.2]} 8...
O-O {[%clk 0:02:48.2]} 9. Nf3 {[%clk 0:02:48.1]} 9... d6 {[%clk 0:02:48.6]} 10.
O-O {[%clk 0:02:47.8]} 10... Nbd7 {[%clk 0:02:48]} 11. Re1 {[%clk 0:02:45.1]}
11... Nb6 {[%clk 0:02:46.7]} 12. e4 {[%clk 0:02:37.5]} 12... Qc7 {[%clk
0:02:43.6]} 13. Bf4 {[%clk 0:02:32.9]} 13... Nh5 {[%clk 0:02:41.7]} 14. Bg5
{[%clk 0:02:30]} 14... Nc4 {[%clk 0:02:38.7]} 15. Qc2 {[%clk 0:02:21.7]} 15...
Rfb8 {[%clk 0:02:37.1]} 16. b3 {[%clk 0:02:18.8]} 16... Na3 {[%clk 0:02:34.9]}
17. Qd2 {[%clk 0:02:13.7]} 17... Bc8 {[%clk 0:02:19.8]} 18. h3 {[%clk
0:02:00.9]} 18... Ra7 {[%clk 0:02:04.9]} 19. g4 {[%clk 0:01:50.1]} 19... Nf6
{[%clk 0:02:03.8]} 20. e5 {[%clk 0:01:50.2]} 20... Ne8 {[%clk 0:01:55.3]} 21.
exd6 {[%clk 0:01:36.2]} 21... Qa5 {[%clk 0:01:50.7]} 22. Rac1 {[%clk 0:01:22.2]}
22... Nxd6 {[%clk 0:01:47.8]} 23. Bxe7 {[%clk 0:01:21.7]} 23... Rd7 {[%clk
0:01:22.9]} 24. Bxd6 {[%clk 0:01:14.2]} 24... Rxd6 {[%clk 0:01:19.4]} 25. Re8+
{[%clk 0:01:13.8]} 1-0

[Event "*** SCC Grand Prix: Titled Tuesday Blitz"]
[Site "Chess.com"]
[Date "2020.07.07"]
[Round "2"]
[White "SilviusTiberius"]
[Black "snap_man"]
[Result "1-0"]
[WhiteElo "2502"]
[BlackElo "2292"]
[TimeControl "180+1"]
[EndTime "10:15:56 PDT"]
[Termination "SilviusTiberius won by resignation"]

1. e4 {[%clk 0:03:00.9]} 1... c6 {[%clk 0:02:59.9]} 2. d4 {[%clk 0:03:00.6]}
2... d5 {[%clk 0:03:00.8]} 3. Nd2 {[%clk 0:03:01]} 3... dxe4 {[%clk 0:03:00.4]}
4. Nxe4 {[%clk 0:03:01.5]} 4... Bf5 {[%clk 0:03:01]} 5. Ng3 {[%clk 0:03:01.3]}
5... Bg6 {[%clk 0:03:01.3]} 6. h4 {[%clk 0:03:01.8]} 6... h6 {[%clk 0:03:00.1]}
7. Nf3 {[%clk 0:03:01.3]} 7... Nf6 {[%clk 0:02:58.8]} 8. Ne5 {[%clk 0:03:00.3]}
8... Bh7 {[%clk 0:02:58.4]} 9. Bd3 {[%clk 0:03:00.7]} 9... Bxd3 {[%clk
0:02:57.3]} 10. Qxd3 {[%clk 0:03:01.6]} 10... e6 {[%clk 0:02:55.8]} 11. f4
{[%clk 0:02:58.4]} 11... Nbd7 {[%clk 0:02:55.2]} 12. Bd2 {[%clk 0:02:56.3]}
12... c5 {[%clk 0:02:16.8]} 13. O-O-O {[%clk 0:02:53.7]} 13... cxd4 {[%clk
0:01:56]} 14. Ng6 {[%clk 0:02:50.8]} 14... Rg8 {[%clk 0:01:40]} 15. Nxf8 {[%clk
0:02:48.3]} 15... Kxf8 {[%clk 0:01:31.7]} 16. Bb4+ {[%clk 0:02:44.1]} 16... Ke8
{[%clk 0:01:30.2]} 17. Nf5 {[%clk 0:02:25.9]} 17... Qb6 {[%clk 0:01:11.3]} 18.
Nd6+ {[%clk 0:02:20.5]} 18... Kf8 {[%clk 0:01:11.2]} 19. Ba3 {[%clk 0:02:05.4]}
19... Nc5 {[%clk 0:00:45.5]} 20. Qxd4 {[%clk 0:01:54.2]} 20... Nfd7 {[%clk
0:00:44.8]} 21. Ne4 {[%clk 0:01:46.9]} 1-0

[Event "*** SCC Grand Prix: Titled Tuesday Blitz"]
[Site "Chess.com"]
[Date "2020.07.07"]
[Round "2"]
[White "rynos0411"]
[Black "pavelalexandru07"]
[Result "1-0"]
[WhiteElo "2421"]
[BlackElo "2166"]
[TimeControl "180+1"]
[EndTime "10:16:02 PDT"]
[Termination "rynos0411 won by resignation"]

1. d4 {[%clk 0:03:00.9]} 1... Nf6 {[%clk 0:02:59.4]} 2. c4 {[%clk 0:03:00.4]}
2... c5 {[%clk 0:02:59.5]} 3. d5 {[%clk 0:03:00.2]} 3... e6 {[%clk 0:02:59.8]}
4. Nc3 {[%clk 0:03:00.2]} 4... exd5 {[%clk 0:02:59.9]} 5. cxd5 {[%clk
0:03:01.1]} 5... d6 {[%clk 0:03:00.4]} 6. Nf3 {[%clk 0:03:01.2]} 6... g6 {[%clk
0:03:00.7]} 7. Bf4 {[%clk 0:03:01.8]} 7... Bg7 {[%clk 0:02:59.9]} 8. Qa4+ {[%clk
0:03:02.4]} 8... Bd7 {[%clk 0:02:57.2]} 9. Qb3 {[%clk 0:03:01.3]} 9... b5 {[%clk
0:02:56.5]} 10. Bxd6 {[%clk 0:03:00.5]} 10... Qb6 {[%clk 0:02:56.4]} 11. Be5
{[%clk 0:03:00]} 11... c4 {[%clk 0:02:48.8]} 12. Qd1 {[%clk 0:02:58]} 12... O-O
{[%clk 0:02:43.1]} 13. e3 {[%clk 0:02:57.6]} 13... b4 {[%clk 0:02:35.8]} 14. Nb1
{[%clk 0:02:54.8]} 14... Rc8 {[%clk 0:02:31.2]} 15. Be2 {[%clk 0:02:52.4]} 15...
a5 {[%clk 0:02:06.9]} 16. O-O {[%clk 0:02:47.4]} 16... Na6 {[%clk 0:02:06.2]}
17. Nbd2 {[%clk 0:02:43.2]} 17... c3 {[%clk 0:01:44.3]} 18. bxc3 {[%clk
0:02:38.5]} 18... bxc3 {[%clk 0:01:43.6]} 19. Nc4 {[%clk 0:02:37.8]} 19... Qc5
{[%clk 0:01:29.2]} 20. Rc1 {[%clk 0:02:17.9]} 20... Nxd5 {[%clk 0:01:22.4]} 21.
Bxg7 {[%clk 0:02:03.4]} 21... Kxg7 {[%clk 0:01:22]} 22. e4 {[%clk 0:02:04.3]}
22... Nf6 {[%clk 0:01:14.8]} 23. e5 {[%clk 0:02:02.2]} 23... Nd5 {[%clk
0:01:11.6]} 24. Nd6 {[%clk 0:01:53.9]} 24... Rd8 {[%clk 0:00:33.7]} 25. Nb7
{[%clk 0:01:50.6]} 25... Qc6 {[%clk 0:00:29.2]} 26. Nxd8 {[%clk 0:01:49.2]}
26... Rxd8 {[%clk 0:00:27.8]} 27. Bxa6 {[%clk 0:01:49.6]} 1-0

[Event "*** SCC Grand Prix: Titled Tuesday Blitz"]
[Site "Chess.com"]
[Date "2020.07.07"]
[Round "2"]
[White "Alexandercs432"]
[Black "ajian"]
[Result "0-1"]
[WhiteElo "2147"]
[BlackElo "2417"]
[TimeControl "180+1"]
[EndTime "10:16:02 PDT"]
[Termination "ajian won by resignation"]

1. e4 {[%clk 0:03:00.8]} 1... c5 {[%clk 0:02:59.9]} 2. Nf3 {[%clk 0:03:00.6]}
2... Nc6 {[%clk 0:02:59.9]} 3. d4 {[%clk 0:03:00.6]} 3... cxd4 {[%clk
0:03:00.8]} 4. Nxd4 {[%clk 0:03:01.5]} 4... Nf6 {[%clk 0:03:01.3]} 5. Nc3 {[%clk
0:03:01.9]} 5... e5 {[%clk 0:03:01.6]} 6. Ndb5 {[%clk 0:03:01.9]} 6... d6 {[%clk
0:03:02.1]} 7. Bg5 {[%clk 0:03:00.9]} 7... a6 {[%clk 0:02:56.4]} 8. Na3 {[%clk
0:02:58.8]} 8... b5 {[%clk 0:02:57.3]} 9. Nd5 {[%clk 0:02:58.6]} 9... Be7 {[%clk
0:02:57.4]} 10. Bxf6 {[%clk 0:02:58.6]} 10... Bxf6 {[%clk 0:02:58.3]} 11. c3
{[%clk 0:02:58.2]} 11... O-O {[%clk 0:02:58.3]} 12. Nc2 {[%clk 0:02:57.7]} 12...
Rb8 {[%clk 0:02:58.7]} 13. a4 {[%clk 0:02:53.3]} 13... bxa4 {[%clk 0:02:57.6]}
14. Ncb4 {[%clk 0:02:53.8]} 14... Nxb4 {[%clk 0:02:43.8]} 15. cxb4 {[%clk
0:02:54.7]} 15... Bb7 {[%clk 0:02:35.6]} 16. Rxa4 {[%clk 0:02:51.2]} 16... Bc6
{[%clk 0:02:28.1]} 17. Rxa6 {[%clk 0:02:46.5]} 17... Bxd5 {[%clk 0:02:27.3]} 18.
Qxd5 {[%clk 0:02:44.6]} 18... Rxb4 {[%clk 0:02:23.7]} 19. Qxd6 {[%clk
0:02:18.3]} 19... Rxe4+ {[%clk 0:02:21.1]} 20. Be2 {[%clk 0:02:16.4]} 20... Qc8
{[%clk 0:01:55.9]} 21. Qc6 {[%clk 0:01:38.7]} 21... Qg4 {[%clk 0:01:37.2]} 22.
f3 {[%clk 0:01:03.5]} 22... Rxe2+ {[%clk 0:01:35.7]} 23. Kxe2 {[%clk 0:01:01.3]}
23... Qxg2+ {[%clk 0:01:35.4]} 0-1

[Event "*** SCC Grand Prix: Titled Tuesday Blitz"]
[Site "Chess.com"]
[Date "2020.07.07"]
[Round "2"]
[White "Jumbo"]
[Black "druskacik"]
[Result "1-0"]
[WhiteElo "2898"]
[BlackElo "2569"]
[TimeControl "180+1"]
[EndTime "10:16:05 PDT"]
[Termination "Jumbo won by checkmate"]

1. Nf3 {[%clk 0:03:00.9]} 1... d5 {[%clk 0:02:58]} 2. d4 {[%clk 0:03:00]} 2...
Nf6 {[%clk 0:02:57.1]} 3. c4 {[%clk 0:02:58.7]} 3... e6 {[%clk 0:02:56.4]} 4. g3
{[%clk 0:02:58.8]} 4... dxc4 {[%clk 0:02:53.3]} 5. Bg2 {[%clk 0:02:57.5]} 5...
a6 {[%clk 0:02:53.5]} 6. O-O {[%clk 0:02:54.7]} 6... Nc6 {[%clk 0:02:52]} 7. Bg5
{[%clk 0:02:50.9]} 7... Rb8 {[%clk 0:02:41.3]} 8. Nc3 {[%clk 0:02:06]} 8... b5
{[%clk 0:02:37.8]} 9. d5 {[%clk 0:00:38.3]} 9... Nb4 {[%clk 0:02:15.1]} 10. dxe6
{[%clk 0:00:22]} 10... Qxd1 {[%clk 0:01:51.5]} 11. exf7+ {[%clk 0:00:20.8]}
11... Kxf7 {[%clk 0:01:52.4]} 12. Rfxd1 {[%clk 0:00:20.7]} 12... Bb7 {[%clk
0:01:44.8]} 13. Ne5+ {[%clk 0:00:20.3]} 13... Ke6 {[%clk 0:01:43.5]} 14. Bh3+
{[%clk 0:00:13.8]} 14... Kxe5 {[%clk 0:01:37.5]} 15. Bf4# {[%clk 0:00:12.9]} 1-0

[Event "*** SCC Grand Prix: Titled Tuesday Blitz"]
[Site "Chess.com"]
[Date "2020.07.07"]
[Round "2"]
[White "Koksik_13"]
[Black "Parhamov"]
[Result "1-0"]
[WhiteElo "2619"]
[BlackElo "3032"]
[TimeControl "180+1"]
[EndTime "10:16:08 PDT"]
[Termination "Koksik_13 won by resignation"]

1. e4 {[%clk 0:03:00.9]} 1... c5 {[%clk 0:02:33.1]} 2. Nf3 {[%clk 0:03:00]} 2...
Nc6 {[%clk 0:02:33.6]} 3. c3 {[%clk 0:03:00.3]} 3... Nf6 {[%clk 0:02:33.1]} 4.
e5 {[%clk 0:03:00.5]} 4... Nd5 {[%clk 0:02:33.4]} 5. d4 {[%clk 0:03:01]} 5...
cxd4 {[%clk 0:02:33.9]} 6. cxd4 {[%clk 0:03:01.8]} 6... d6 {[%clk 0:02:34.4]} 7.
Bc4 {[%clk 0:03:01.9]} 7... dxe5 {[%clk 0:02:34.4]} 8. Bxd5 {[%clk 0:03:01.1]}
8... Qxd5 {[%clk 0:02:33.7]} 9. Nc3 {[%clk 0:03:01.7]} 9... Qa5 {[%clk
0:02:31.7]} 10. d5 {[%clk 0:03:01.8]} 10... Nb4 {[%clk 0:02:28.3]} 11. a3 {[%clk
0:02:51.8]} 11... e4 {[%clk 0:02:27.8]} 12. Ne5 {[%clk 0:02:36.7]} 12... Nd3+
{[%clk 0:02:18.3]} 13. Nxd3 {[%clk 0:02:36]} 13... exd3 {[%clk 0:02:19.2]} 14.
Qxd3 {[%clk 0:02:35.4]} 14... g6 {[%clk 0:02:18.9]} 15. Qd4 {[%clk 0:02:35]}
15... f6 {[%clk 0:01:19.2]} 16. O-O {[%clk 0:02:34.3]} 16... Bd7 {[%clk
0:01:18.2]} 17. Re1 {[%clk 0:02:30.9]} 17... Kf7 {[%clk 0:01:17.7]} 18. Bd2
{[%clk 0:02:21.1]} 18... Qb6 {[%clk 0:01:16.7]} 19. Qf4 {[%clk 0:02:20.6]} 19...
Rc8 {[%clk 0:01:16.3]} 20. Ne4 {[%clk 0:02:19.6]} 20... h5 {[%clk 0:01:13.3]}
21. Bc3 {[%clk 0:02:19.1]} 21... Bh6 {[%clk 0:01:11.7]} 22. Qf3 {[%clk
0:02:02.6]} 22... Bg4 {[%clk 0:01:11.1]} 23. Qd3 {[%clk 0:02:02.4]} 23... Bf5
{[%clk 0:01:08.7]} 24. Qf3 {[%clk 0:02:02.3]} 24... Rhd8 {[%clk 0:01:05.2]} 25.
h3 {[%clk 0:01:58.9]} 25... Rc4 {[%clk 0:01:00.9]} 26. Ng3 {[%clk 0:01:49.2]}
26... Rf4 {[%clk 0:00:58.8]} 27. Qe2 {[%clk 0:01:49.4]} 27... Rd7 {[%clk
0:00:57.4]} 28. Nxf5 {[%clk 0:01:47.3]} 28... Rxf5 {[%clk 0:00:53.5]} 29. Qe6+
{[%clk 0:01:46.3]} 29... Ke8 {[%clk 0:00:48.1]} 30. Qg8+ {[%clk 0:01:46]} 30...
Bf8 {[%clk 0:00:47.9]} 31. Qxg6+ {[%clk 0:01:46.4]} 1-0

[Event "*** SCC Grand Prix: Titled Tuesday Blitz"]
[Site "Chess.com"]
[Date "2020.07.07"]
[Round "2"]
[White "Caterpiller35"]
[Black "WilliamSchill"]
[Result "1-0"]
[WhiteElo "2369"]
[BlackElo "1973"]
[TimeControl "180+1"]
[EndTime "10:16:08 PDT"]
[Termination "Caterpiller35 won on time"]

1. e4 {[%clk 0:03:00]} 1... e5 {[%clk 0:02:59.2]} 2. Nf3 {[%clk 0:02:59.8]} 2...
Nc6 {[%clk 0:02:59.2]} 3. Bc4 {[%clk 0:02:59.9]} 3... Bc5 {[%clk 0:02:58.1]} 4.
O-O {[%clk 0:02:59.8]} 4... Nf6 {[%clk 0:02:57.8]} 5. d4 {[%clk 0:02:59.9]} 5...
Bxd4 {[%clk 0:02:56]} 6. Nxd4 {[%clk 0:02:59.7]} 6... Nxd4 {[%clk 0:02:55.6]} 7.
f4 {[%clk 0:03:00]} 7... d6 {[%clk 0:02:50.4]} 8. fxe5 {[%clk 0:03:00]} 8...
dxe5 {[%clk 0:02:49.7]} 9. Bg5 {[%clk 0:03:00.6]} 9... Qe7 {[%clk 0:02:48.3]}
10. c3 {[%clk 0:02:57.1]} 10... Ne6 {[%clk 0:02:40.6]} 11. Bxf6 {[%clk
0:02:54.1]} 11... gxf6 {[%clk 0:02:39.9]} 12. Na3 {[%clk 0:02:52.8]} 12... Bd7
{[%clk 0:02:13.8]} 13. Qf3 {[%clk 0:02:51.4]} 13... Nf4 {[%clk 0:00:49]} 14. g3
{[%clk 0:02:42.4]} 14... Rg8 {[%clk 0:00:44.9]} 15. Kh1 {[%clk 0:02:42.3]} 15...
Bg4 {[%clk 0:00:27.3]} 16. Qf2 {[%clk 0:02:40.7]} 16... Bh3 {[%clk 0:00:09.6]}
17. gxf4 {[%clk 0:02:38.4]} 17... Bg2+ {[%clk 0:00:09.4]} 18. Qxg2 {[%clk
0:02:37.8]} 18... Rxg2 {[%clk 0:00:09.2]} 19. Kxg2 {[%clk 0:02:38.7]} 19... exf4
{[%clk 0:00:09]} 20. Rxf4 {[%clk 0:02:38.8]} 20... O-O-O {[%clk 0:00:08.5]} 21.
Raf1 {[%clk 0:02:36.6]} 21... Rd2+ {[%clk 0:00:07.8]} 22. R1f2 {[%clk
0:02:35.4]} 22... Rxf2+ {[%clk 0:00:07.5]} 23. Kxf2 {[%clk 0:02:35.8]} 23...
Qc5+ {[%clk 0:00:06.8]} 24. Ke2 {[%clk 0:02:27.6]} 24... Qg5 {[%clk 0:00:06]}
25. Rf2 {[%clk 0:02:23.6]} 25... Qc1 {[%clk 0:00:04.1]} 26. Kd3 {[%clk
0:02:23.7]} 26... Qd1+ {[%clk 0:00:02.6]} 27. Rd2 {[%clk 0:02:23.9]} 27... Qf3+
{[%clk 0:00:02.3]} 28. Kc2 {[%clk 0:02:22]} 28... Qxe4+ {[%clk 0:00:01.5]} 29.
Bd3 {[%clk 0:02:18.8]} 1-0

[Event "*** SCC Grand Prix: Titled Tuesday Blitz"]
[Site "Chess.com"]
[Date "2020.07.07"]
[Round "2"]
[White "Alexsur1981"]
[Black "Ermito2020"]
[Result "1/2-1/2"]
[WhiteElo "2656"]
[BlackElo "2473"]
[TimeControl "180+1"]
[EndTime "10:16:09 PDT"]
[Termination "Game drawn - insufficient material"]

1. e4 {[%clk 0:03:00.9]} 1... e6 {[%clk 0:02:59.3]} 2. d4 {[%clk 0:02:59.2]}
2... d5 {[%clk 0:02:59.8]} 3. Nd2 {[%clk 0:02:59.5]} 3... Be7 {[%clk 0:02:59.2]}
4. Ngf3 {[%clk 0:02:58.8]} 4... Nf6 {[%clk 0:02:57.9]} 5. Bd3 {[%clk 0:02:59]}
5... c5 {[%clk 0:02:56.5]} 6. dxc5 {[%clk 0:02:59.9]} 6... dxe4 {[%clk
0:02:52.1]} 7. Nxe4 {[%clk 0:03:00.8]} 7... Nxe4 {[%clk 0:02:51.8]} 8. Bxe4
{[%clk 0:03:01.3]} 8... Qxd1+ {[%clk 0:02:52.3]} 9. Kxd1 {[%clk 0:03:02.1]} 9...
Bxc5 {[%clk 0:02:52.6]} 10. Ne5 {[%clk 0:03:02.5]} 10... Nd7 {[%clk 0:01:56]}
11. Nxd7 {[%clk 0:03:01.3]} 11... Kxd7 {[%clk 0:01:56.1]} 12. Ke2 {[%clk
0:02:58.9]} 12... Kc7 {[%clk 0:01:54.9]} 13. Bf4+ {[%clk 0:02:44.7]} 13... Bd6
{[%clk 0:01:54.5]} 14. Bxd6+ {[%clk 0:02:45.1]} 14... Kxd6 {[%clk 0:01:54.7]}
15. Rad1+ {[%clk 0:02:45]} 15... Kc7 {[%clk 0:01:54.8]} 16. Rd3 {[%clk
0:02:45.5]} 16... Bd7 {[%clk 0:01:43.3]} 17. Rhd1 {[%clk 0:02:43.7]} 17... Rhd8
{[%clk 0:01:22.7]} 18. c4 {[%clk 0:02:43.1]} 18... Bc6 {[%clk 0:01:05]} 19. Rxd8
{[%clk 0:02:42.2]} 19... Rxd8 {[%clk 0:01:04.2]} 20. Rxd8 {[%clk 0:02:43.1]}
20... Kxd8 {[%clk 0:01:03.9]} 21. Bxc6 {[%clk 0:02:42.1]} 21... bxc6 {[%clk
0:01:03.4]} 22. Kd3 {[%clk 0:02:41.5]} 22... c5 {[%clk 0:00:20.1]} 23. a3 {[%clk
0:02:38.9]} 23... a5 {[%clk 0:00:19.2]} 24. b3 {[%clk 0:02:37]} 24... Kc7 {[%clk
0:00:19.1]} 25. Kc3 {[%clk 0:02:37.4]} 25... Kc6 {[%clk 0:00:18.7]} 26. b4
{[%clk 0:02:37.9]} 26... axb4+ {[%clk 0:00:18.1]} 27. axb4 {[%clk 0:02:38.8]}
27... cxb4+ {[%clk 0:00:17.7]} 28. Kxb4 {[%clk 0:02:39.7]} 28... e5 {[%clk
0:00:17.6]} 29. c5 {[%clk 0:02:39.4]} 29... f5 {[%clk 0:00:16.8]} 30. Kc4 {[%clk
0:02:39.8]} 30... g5 {[%clk 0:00:16.6]} 31. g3 {[%clk 0:02:37.4]} 31... h5
{[%clk 0:00:15.4]} 32. h3 {[%clk 0:02:34.6]} 32... f4 {[%clk 0:00:08]} 33. gxf4
{[%clk 0:02:29.1]} 33... exf4 {[%clk 0:00:07.7]} 34. Kd4 {[%clk 0:02:26.8]}
34... g4 {[%clk 0:00:07.9]} 35. hxg4 {[%clk 0:02:27.7]} 35... hxg4 {[%clk
0:00:08.1]} 36. Ke4 {[%clk 0:02:28.2]} 36... g3 {[%clk 0:00:08.4]} 37. fxg3
{[%clk 0:02:28.9]} 37... fxg3 {[%clk 0:00:08.6]} 38. Kf3 {[%clk 0:02:29.7]}
38... Kxc5 {[%clk 0:00:09.3]} 39. Kxg3 {[%clk 0:02:30]} 1/2-1/2

[Event "*** SCC Grand Prix: Titled Tuesday Blitz"]
[Site "Chess.com"]
[Date "2020.07.07"]
[Round "2"]
[White "TargetA"]
[Black "ElCoachRene"]
[Result "1-0"]
[WhiteElo "2560"]
[BlackElo "2246"]
[TimeControl "180+1"]
[EndTime "10:16:16 PDT"]
[Termination "TargetA won by resignation"]

1. e4 {[%clk 0:03:00.9]} 1... Nc6 {[%clk 0:02:59.4]} 2. Nf3 {[%clk 0:02:59.7]}
2... e5 {[%clk 0:02:58.5]} 3. Bb5 {[%clk 0:02:57.4]} 3... Nge7 {[%clk
0:02:56.5]} 4. d4 {[%clk 0:02:56.4]} 4... exd4 {[%clk 0:02:55.3]} 5. Nxd4 {[%clk
0:02:57.3]} 5... Nxd4 {[%clk 0:02:53.9]} 6. Qxd4 {[%clk 0:02:56.4]} 6... Nc6
{[%clk 0:02:54.4]} 7. Bxc6 {[%clk 0:02:55.1]} 7... dxc6 {[%clk 0:02:48.8]} 8.
Qxd8+ {[%clk 0:02:54.3]} 8... Kxd8 {[%clk 0:02:49.7]} 9. Nc3 {[%clk 0:02:52.6]}
9... Bb4 {[%clk 0:02:45.7]} 10. Bg5+ {[%clk 0:02:51.8]} 10... f6 {[%clk
0:02:44.6]} 11. O-O-O+ {[%clk 0:02:50.7]} 11... Ke7 {[%clk 0:02:44.1]} 12. Bf4
{[%clk 0:02:50.3]} 12... Bd6 {[%clk 0:02:34.2]} 13. e5 {[%clk 0:02:26.1]} 13...
fxe5 {[%clk 0:02:26.5]} 14. Rhe1 {[%clk 0:02:26]} 14... Be6 {[%clk 0:01:44]} 15.
Bxe5 {[%clk 0:02:24]} 15... Rhf8 {[%clk 0:01:34.5]} 16. f4 {[%clk 0:02:12.8]}
16... Rf7 {[%clk 0:01:27.2]} 17. Bxd6+ {[%clk 0:01:56.3]} 17... cxd6 {[%clk
0:01:25.8]} 18. Ne4 {[%clk 0:01:56.7]} 18... Rxf4 {[%clk 0:01:15.9]} 19. Nxd6
{[%clk 0:01:50.2]} 19... Rd8 {[%clk 0:01:00.5]} 20. Nxb7 {[%clk 0:01:42.3]}
20... Rxd1+ {[%clk 0:00:56]} 21. Kxd1 {[%clk 0:01:43.2]} 21... Kf6 {[%clk
0:00:38.6]} 22. Nc5 {[%clk 0:01:32.8]} 22... Bg4+ {[%clk 0:00:34.3]} 23. Kc1
{[%clk 0:01:32.7]} 23... Rf2 {[%clk 0:00:33.4]} 24. Ne4+ {[%clk 0:01:31.9]} 1-0